fUST/lending_fUST_20250729
["ID","MTS","AMOUNT","RATE_DAILY","PERIOD"]
[375739014,1753726266615,-940.82,0.00023287,2]
[375739016,1753726266625,-481.16,0.00023287,2]
[375739018,1753726266634,-2177.28,0.00023287,2]
[375739020,1753726266644,-460.0,0.00023287,2]
[375739022,1753726266654,-712.61,0.00023287,2]
[375739024,1753726266664,-580.31,0.00023287,2]
[375739026,1753726266673,-1532.04,0.00023287,2]
[375739028,1753726266683,-497.89,0.00023287,2]
[375739030,1753726266692,-476.16,0.00023287,2]
[375739032,1753726266702,-460.0,0.00023287,2]
[375739034,1753726266711,-902.89,0.00023287,2]
[375739036,1753726266720,-2112.95,0.00023287,2]
[375739038,1753726266729,-2156.68,0.00023287,2]
[375739040,1753726266738,-460.0,0.00023287,2]
[375739042,1753726266748,-797.0,0.00023288,2]
[375739044,1753726266757,-178.560559,0.00023308,5]
[375739046,1753726266767,-200.0,0.00023333,15]
[375739048,1753726266776,-200.0,0.00023333,15]
[375739050,1753726266785,-200.0,0.00023333,15]
[375739052,1753726266794,-200.0,0.00023333,15]
[375739054,1753726266803,-200.0,0.00023333,15]
[375739056,1753726266813,-200.0,0.00023333,15]
[375739057,1753726266822,-366.0,0.00023333,15]
[375739059,1753726266831,-742.0,0.00023353,2]
[375739061,1753726266840,-742.0,0.00023433,2]
[375739063,1753726266850,-178.560559,0.00023446,7]
[375739065,1753726266861,-178.560559,0.00023525,4]
[375739067,1753726266871,-5041.81830741,0.00023525,2]
[375739069,1753726266880,-333.62,0.00023528,2]
[375739071,1753726266889,-1863.38216828,0.00023561,2]
[375739073,1753726266898,-324.492934,0.00023561,7]
[375739075,1753726266907,-324.492934,0.00023561,7]
[375739077,1753726266917,-151.0,0.00023561,7]
[375739079,1753726266926,-356.094467,0.00023561,7]
[375739081,1753726266936,-356.094467,0.00023561,7]
[375739083,1753726266945,-321.913702,0.00023561,7]
[375739096,1753726267061,-321.913702,0.00023561,7]
[375739098,1753726267072,-725.53,0.00023561,2]
[375739100,1753726267084,-624.72,0.00023561,2]
[375739102,1753726267094,-7756.03,0.00023561,2]
[375739104,1753726267106,-275.91522497,0.00023561,2]
[375739106,1753726267117,-1428.52,0.00023561,2]
[375739108,1753726267129,-460.0,0.00023561,2]
[375739110,1753726267141,-761.77,0.00023561,2]
[375739112,1753726267151,-491.55,0.00023561,2]
[375739114,1753726267162,-1843.09,0.00023561,2]
[375739116,1753726267172,-716.08,0.00023561,2]
[375739118,1753726267182,-595.94,0.00023561,2]
[375739120,1753726267191,-460.0,0.00023561,2]
[375739122,1753726267201,-460.0,0.00023561,2]
[375739123,1753726267210,-617.58,0.00023561,2]
[375739125,1753726267220,-4965.97,0.00023561,2]
[375739127,1753726267229,-897.76,0.00023561,2]
[375739129,1753726267239,-2047.29,0.00023561,2]
[375739131,1753726267249,-3008.21,0.00023561,2]
[375739133,1753726267259,-747.06,0.00023561,2]
[375739135,1753726267268,-617.68,0.00023561,2]
[375739137,1753726267278,-3254.09,0.00023561,2]
[375739139,1753726267288,-971.02,0.00023561,2]
[375739141,1753726267297,-1422.43,0.00023561,2]
[375739143,1753726267307,-2471.61,0.00023561,2]
[375739145,1753726267317,-460.0,0.00023561,2]
[375739147,1753726267330,-460.0,0.00023561,2]
[375739150,1753726267341,-540.49,0.00023561,2]
[375739152,1753726267351,-463.43,0.00023561,2]
[375739154,1753726267365,-473.84,0.00023561,2]
[375739156,1753726267374,-3735.85,0.00023561,2]
[375739158,1753726267384,-2049.2,0.00023561,2]
[375739159,1753726267394,-486.5077746,0.00023561,2]
[375739161,1753726267404,-749.47,0.00023561,2]
[375739163,1753726267414,-561.15,0.00023561,2]
[375739165,1753726267424,-469.32,0.00023561,2]
[375739168,1753726267434,-483.3,0.00023561,2]
[375739169,1753726267443,-582.39,0.00023561,2]
[375739171,1753726267453,-940.82,0.00023561,2]
[375739173,1753726267463,-481.16,0.00023561,2]
[375739175,1753726267473,-2177.28,0.00023561,2]
[375739177,1753726267484,-460.0,0.00023561,2]
[375739179,1753726267493,-712.61,0.00023561,2]
[375739182,1753726267504,-580.31,0.00023561,2]
[375739184,1753726267514,-1532.04,0.00023561,2]
[375739186,1753726267524,-497.89,0.00023561,2]
[375739188,1753726267534,-476.16,0.00023561,2]
[375739189,1753726267544,-460.0,0.00023561,2]
[375739191,1753726267553,-902.89,0.00023561,2]
[375739193,1753726267563,-2112.95,0.00023561,2]
[375739195,1753726267573,-2156.68,0.00023561,2]
[375739197,1753726267582,-460.0,0.00023561,2]
[375739199,1753726267592,-797.0,0.00023562,2]
[375739201,1753726267601,-991.2,0.00023587,5]
[375739203,1753726267613,-1000.0,0.000236,2]
[375739205,1753726267623,-178.560559,0.00023636,5]
[375739207,1753726267632,-500.0,0.0002365,2]
[375739209,1753726267642,-288.1,0.00023668,2]
[375739211,1753726267651,-977.79,0.00023687,3]
[375739213,1753726267662,-422.0,0.000237,2]
[375739215,1753726267672,-760.0,0.00023721,2]
[375739217,1753726267682,-993.5248125,0.00023753,3]
[375739219,1753726267691,-150.0,0.00023775,2]
[375739221,1753726267700,-977.79,0.00023787,4]
[375739223,1753726267710,-2000.0,0.000238,2]
[375739225,1753726267720,-175.209476,0.00023835,7]
[375739227,1753726267730,-175.209476,0.00023835,7]
[375739230,1753726267740,-151.0,0.00023835,7]
[375739231,1753726267749,-151.0,0.00023835,7]
[375739234,1753726267759,-205.16957,0.00023835,7]
[375739235,1753726267769,-205.16957,0.00023835,7]
[375739237,1753726267779,-725.53,0.00023835,2]
[375739239,1753726267788,-624.72,0.00023835,2]
[375739241,1753726267797,-7756.03,0.00023835,2]
[375739243,1753726267807,-1428.52,0.00023835,2]
[375739245,1753726267817,-460.0,0.00023835,2]
[375739247,1753726267826,-761.77,0.00023835,2]
[375739249,1753726267835,-491.55,0.00023835,2]
[375739251,1753726267844,-1843.09,0.00023835,2]
[375739253,1753726267855,-716.08,0.00023835,2]
[375739255,1753726267865,-595.94,0.00023835,2]
[375739257,1753726267875,-428.85121217,0.00023835,2]
[375739259,1753726267884,-460.0,0.00023835,2]
[375739261,1753726267893,-617.58,0.00023835,2]
[375739263,1753726267903,-4965.97,0.00023835,2]
[375739265,1753726267912,-897.76,0.00023835,2]
[375739267,1753726267921,-2047.29,0.00023835,2]
[375739269,1753726267930,-3008.21,0.00023835,2]
[375739271,1753726267939,-747.06,0.00023835,2]
[375739273,1753726267949,-617.68,0.00023835,2]
[375739275,1753726267957,-3254.09,0.00023835,2]
[375739277,1753726267968,-971.02,0.00023835,2]
[375739279,1753726267977,-1422.43,0.00023835,2]
[375739281,1753726267986,-2471.61,0.00023835,2]
[375739282,1753726267995,-460.0,0.00023835,2]
[375739284,1753726268004,-460.0,0.00023835,2]
[375739285,1753726268013,-540.49,0.00023835,2]
[375739286,1753726268022,-463.43,0.00023835,2]
[375739287,1753726268031,-473.84,0.00023835,2]
[375739288,1753726268040,-3735.85,0.00023835,2]
[375739289,1753726268050,-2049.2,0.00023835,2]
[375739290,1753726268059,-749.47,0.00023835,2]
[375739292,1753726268068,-561.15,0.00023835,2]
[375739294,1753726268077,-469.32,0.00023835,2]
[375739295,1753726268087,-483.3,0.00023835,2]
[375739299,1753726268109,-582.39,0.00023835,2]
[375739301,1753726268120,-151.0,0.00023835,7]
[375739303,1753726268129,-940.82,0.00023835,2]
[375739305,1753726268140,-481.16,0.00023835,2]
[375739307,1753726268151,-2177.28,0.00023835,2]
[375739309,1753726268161,-460.0,0.00023835,2]
[375739311,1753726268170,-712.61,0.00023835,2]
[375739313,1753726268180,-580.31,0.00023835,2]
[375739315,1753726268190,-1532.04,0.00023835,2]
[375739317,1753726268199,-497.89,0.00023835,2]
[375739319,1753726268209,-151.0,0.00023835,7]
[375739321,1753726268219,-476.16,0.00023835,2]
[375739323,1753726268229,-460.0,0.00023835,2]
[375739325,1753726268239,-902.89,0.00023835,2]
[375739327,1753726268249,-151.0,0.00023835,7]
[375739330,1753726268259,-2112.95,0.00023835,2]
[375739332,1753726268268,-2156.68,0.00023835,2]
[375739334,1753726268278,-332.19362281,0.00023835,2]
[375739336,1753726268288,-797.0,0.00023836,2]
[375739338,1753726268297,-500.0,0.0002385,2]
[375739340,1753726268306,-178.560559,0.00023862,2]
[375739342,1753726268316,-977.79,0.00023887,6]
[375739344,1753726268328,-207.0,0.000239,9]
[375739346,1753726268338,-991.2,0.00023944,6]
[375739348,1753726268348,-178.560559,0.00023964,5]
[375739350,1753726268359,-977.79,0.00023987,7]
[375739352,1753726268371,-160.0,0.00024,7]
[375739354,1753726268381,-231.34820253,0.00024,7]
[375739356,1753726268391,-160.0,0.00024,7]
[375739358,1753726268402,-526.58819812,0.00024,7]
[375739360,1753726268412,-160.0,0.00024,7]
[375739362,1753726268422,-840.90880427,0.00024,7]
[375739365,1753726268432,-216.06083566,0.00024,7]
[375739367,1753726268441,-160.0,0.00024,7]
[375739369,1753726268451,-600.0,0.00024058,2]
[375739371,1753726268461,-977.79,0.00024087,3]
[375739373,1753726268470,-5041.81830741,0.00024089,2]
[375739375,1753726268481,-1311.82,0.000241,7]
[375739377,1753726268490,-3031.72,0.000241,7]
[375739379,1753726268500,-44780.89,0.000241,2]
[375739381,1753726268509,-154.887059,0.000241,7]
[375739383,1753726268518,-151.0,0.000241,7]
[375739385,1753726268528,-1000.0,0.000241,2]
[375739387,1753726268537,-380.79538,0.000241,7]
[375739388,1753726268547,-380.79538,0.000241,7]
[375739391,1753726268556,-151.0,0.000241,7]
[375739393,1753726268565,-151.0,0.000241,7]
[375739395,1753726268575,-256.70157,0.000241,7]
[375739396,1753726268584,-256.70157,0.000241,7]
[375739399,1753726268594,-643.566671,0.000241,7]
[375739401,1753726268604,-643.566671,0.000241,7]
[375739403,1753726268615,-625.761225,0.000241,7]
[375739405,1753726268625,-625.761225,0.000241,7]
[375739407,1753726268635,-500.0,0.00024102,2]
[375739409,1753726268645,-725.53,0.00024109,2]
[375739411,1753726268655,-624.72,0.00024109,2]
[375739413,1753726268664,-7756.03,0.00024109,2]
[375739415,1753726268673,-151.0,0.00024109,7]
[375739417,1753726268682,-1428.52,0.00024109,2]
[375739419,1753726268692,-290.293541,0.00024109,7]
[375739421,1753726268701,-290.293541,0.00024109,7]
[375739423,1753726268711,-460.0,0.00024109,2]
[375739425,1753726268721,-761.77,0.00024109,2]
[375739427,1753726268734,-491.55,0.00024109,2]
[375739429,1753726268743,-151.0,0.00024109,7]
[375739431,1753726268753,-151.0,0.00024109,7]
[375739433,1753726268763,-1843.09,0.00024109,2]
[375739435,1753726268772,-716.08,0.00024109,2]
[375739437,1753726268781,-595.94,0.00024109,2]
[375739439,1753726268791,-460.0,0.00024109,2]
[375739441,1753726268800,-617.58,0.00024109,2]
[375739443,1753726268809,-4965.97,0.00024109,2]
[375739445,1753726268819,-897.76,0.00024109,2]
[375739448,1753726268829,-2047.29,0.00024109,2]
[375739450,1753726268838,-3008.21,0.00024109,2]
[375739452,1753726268848,-747.06,0.00024109,2]
[375739454,1753726268858,-617.68,0.00024109,2]
[375739456,1753726268868,-3254.09,0.00024109,2]
[375739458,1753726268877,-971.02,0.00024109,2]
[375739460,1753726268887,-1422.43,0.00024109,2]
[375739462,1753726268897,-2471.61,0.00024109,2]
[375739464,1753726268907,-172.00771924,0.00024109,2]
[375739466,1753726268916,-460.0,0.00024109,2]
[375739468,1753726268926,-540.49,0.00024109,2]
[375739470,1753726268935,-463.43,0.00024109,2]
[375739472,1753726268945,-473.84,0.00024109,2]
[375739474,1753726268955,-3735.85,0.00024109,2]
[375739476,1753726268966,-2049.2,0.00024109,2]
[375739478,1753726268976,-749.47,0.00024109,2]
[375739480,1753726268986,-561.15,0.00024109,2]
[375739482,1753726268996,-469.32,0.00024109,2]
[375739484,1753726269006,-483.3,0.00024109,2]
[375739486,1753726269015,-582.39,0.00024109,2]
[375739488,1753726269025,-940.82,0.00024109,2]
[375739490,1753726269035,-481.16,0.00024109,2]
[375739492,1753726269045,-2177.28,0.00024109,2]
[375739495,1753726269055,-460.0,0.00024109,2]
[375739497,1753726269064,-712.61,0.00024109,2]
[375739499,1753726269073,-580.31,0.00024109,2]
[375739501,1753726269083,-1532.04,0.00024109,2]
[375739503,1753726269092,-497.89,0.00024109,2]
[375739505,1753726269101,-476.16,0.00024109,2]
[375739507,1753726269113,-460.0,0.00024109,2]
[375739509,1753726269128,-902.89,0.00024109,2]
[375739511,1753726269138,-2112.95,0.00024109,2]
[375739513,1753726269147,-2156.68,0.00024109,2]
[375739515,1753726269156,-797.0,0.0002411,2]
[375739517,1753726269166,-666.797697,0.00024163,2]
[375739519,1753726269175,-167.54041286,0.00024165,2]
[375739521,1753726269186,-977.79,0.00024187,2]
[375739523,1753726269198,-800.0,0.00024199,2]
[375739525,1753726269208,-600.0,0.00024216,2]
[375739527,1753726269218,-288.1,0.00024223,2]
[375739529,1753726269227,-800.0,0.00024231,2]
[375739545,1753726269237,-500.0,0.00024253,2]
[375739547,1753726269385,-500.0,0.00024254,2]
[375739549,1753726269396,-600.0,0.00024267,2]
[375739551,1753726269406,-500.0,0.00024268,2]
[375739553,1753726269416,-860.0,0.00024269,2]
[375739555,1753726269425,-600.0,0.0002427,2]
[375739557,1753726269434,-500.0,0.00024276,2]
[375739559,1753726269444,-178.560559,0.00024287,4]
[375739561,1753726269453,-977.79,0.00024287,6]
[375739563,1753726269463,-178.560559,0.00024292,5]
[375739565,1753726269472,-156.143482,0.00024292,5]
[375739567,1753726269482,-13442.97,0.000243,7]
[375739569,1753726269491,-991.2,0.000243,6]
[375739571,1753726269500,-600.0,0.00024342,2]
[375739573,1753726269509,-600.0,0.00024371,2]
[375739575,1753726269518,-222.41,0.00024372,2]
[375739577,1753726269528,-151.0,0.00024383,7]
[375739579,1753726269537,-725.53,0.00024383,2]
[375739581,1753726269546,-151.0,0.00024383,7]
[375739583,1753726269555,-151.0,0.00024383,7]
[375739585,1753726269565,-624.72,0.00024383,2]
[375739587,1753726269574,-7756.03,0.00024383,2]
[375739589,1753726269583,-151.0,0.00024383,7]
[375739591,1753726269593,-280.490051,0.00024383,7]
[375739593,1753726269602,-280.490051,0.00024383,7]
[375739595,1753726269613,-1428.52,0.00024383,2]
[375739597,1753726269622,-460.0,0.00024383,2]
[375739599,1753726269631,-761.77,0.00024383,2]
[375739601,1753726269641,-491.55,0.00024383,2]
[375739603,1753726269650,-1843.09,0.00024383,2]
[375739605,1753726269659,-716.08,0.00024383,2]
[375739607,1753726269668,-595.94,0.00024383,2]
[375739609,1753726269677,-460.0,0.00024383,2]
[375739611,1753726269687,-617.58,0.00024383,2]
[375739613,1753726269696,-4965.97,0.00024383,2]
[375739615,1753726269705,-897.76,0.00024383,2]
[375739617,1753726269714,-2047.29,0.00024383,2]
[375739619,1753726269723,-3008.21,0.00024383,2]
[375739621,1753726269732,-747.06,0.00024383,2]
[375739623,1753726269741,-617.68,0.00024383,2]
[375739625,1753726269751,-3254.09,0.00024383,2]
[375739627,1753726269760,-971.02,0.00024383,2]
[375739629,1753726269769,-1422.43,0.00024383,2]
[375739631,1753726269778,-2471.61,0.00024383,2]
[375739633,1753726269788,-460.0,0.00024383,2]
[375739635,1753726269797,-540.49,0.00024383,2]
[375739637,1753726269806,-463.43,0.00024383,2]
[375739639,1753726269815,-473.84,0.00024383,2]
[375739641,1753726269824,-3735.85,0.00024383,2]
[375739643,1753726269833,-2049.2,0.00024383,2]
[375739645,1753726269842,-749.47,0.00024383,2]
[375739647,1753726269851,-561.15,0.00024383,2]
[375739649,1753726269863,-469.32,0.00024383,2]
[375739652,1753726269873,-483.3,0.00024383,2]
[375739653,1753726269883,-582.39,0.00024383,2]
[375739655,1753726269892,-940.82,0.00024383,2]
[375739657,1753726269903,-481.16,0.00024383,2]
[375739660,1753726269913,-2177.28,0.00024383,2]
[375739662,1753726269922,-460.0,0.00024383,2]
[375739664,1753726269931,-712.61,0.00024383,2]
[375739666,1753726269941,-580.31,0.00024383,2]
[375739668,1753726269952,-1532.04,0.00024383,2]
[375739670,1753726269961,-497.89,0.00024383,2]
[375739672,1753726269971,-476.16,0.00024383,2]
[375739674,1753726269979,-460.0,0.00024383,2]
[375739676,1753726269988,-902.89,0.00024383,2]
[375739678,1753726269998,-2112.95,0.00024383,2]
[375739680,1753726270008,-2156.68,0.00024383,2]
[375739682,1753726270018,-797.0,0.00024384,2]
[375739684,1753726270027,-977.79,0.00024387,5]
[375739686,1753726270037,-178.560559,0.00024403,7]
[375739687,1753726270046,-500.0,0.00024422,2]
[375739689,1753726270056,-222.41,0.00024452,2]
[375739691,1753726270065,-500.0,0.00024457,2]
[375739693,1753726270074,-500.0,0.00024459,2]
[375739695,1753726270083,-977.79,0.00024487,2]
[375739697,1753726270092,-500.0,0.00024491,2]
[375739699,1753726270101,-178.560559,0.000245,10]
[375739701,1753726270115,-600.0,0.00024507,2]
[375739704,1753726270127,-222.41,0.00024531,2]
[375739706,1753726270137,-3565.9030379,0.00024531,2]
[375739708,1753726270149,-500.0,0.00024533,2]
[375739710,1753726270158,-178.560559,0.0002455,10]
[375739712,1753726270168,-500.0,0.00024575,2]
[375739714,1753726270177,-600.0,0.00024577,2]
[375739716,1753726270187,-977.79,0.00024587,7]
[375739718,1753726270196,-178.560559,0.000246,10]
[375739720,1753726270205,-2000.0,0.000246,2]
[375739722,1753726270214,-1000.0,0.000246,2]
[375739724,1753726270223,-500.0,0.00024607,2]
[375739726,1753726270233,-811.43970814,0.00024611,2]
[375739728,1753726270242,-500.0,0.0002465,2]
[375739730,1753726270252,-502.4956948,0.0002465,2]
[375739732,1753726270261,-500.0,0.0002465,2]
[375739733,1753726270270,-500.0,0.0002465,2]
[375739736,1753726270279,-178.560559,0.0002465,10]
[375739737,1753726270289,-5041.81830741,0.00024653,2]
[375739739,1753726270298,-600.0,0.00024655,2]
[375739741,1753726270308,-324.492934,0.00024657,7]
[375739744,1753726270321,-324.492934,0.00024657,7]
[375739746,1753726270331,-151.0,0.00024657,7]
[375739747,1753726270341,-356.094467,0.00024657,7]
[375739749,1753726270350,-356.094467,0.00024657,7]
[375739751,1753726270363,-321.913702,0.00024657,7]
[375739753,1753726270372,-321.913702,0.00024657,7]
[375739755,1753726270381,-725.53,0.00024657,2]
[375739757,1753726270391,-624.72,0.00024657,2]
[375739759,1753726270401,-7756.03,0.00024657,2]
[375739761,1753726270410,-4340.31483932,0.00024657,2]
[375739763,1753726270420,-1428.52,0.00024657,2]
[375739765,1753726270429,-220.23918415,0.00024657,2]
[375739767,1753726270438,-227.90094725,0.00024657,2]
[375739769,1753726270448,-761.77,0.00024657,2]
[375739771,1753726270457,-491.55,0.00024657,2]
[375739773,1753726270466,-1843.09,0.00024657,2]
[375739774,1753726270475,-716.08,0.00024657,2]
[375739775,1753726270484,-595.94,0.00024657,2]
[375739776,1753726270493,-991.2,0.00024657,6]
[375739777,1753726270502,-460.0,0.00024657,2]
[375739778,1753726270511,-617.58,0.00024657,2]
[375739779,1753726270520,-4965.97,0.00024657,2]
[375739780,1753726270529,-897.76,0.00024657,2]
[375739781,1753726270539,-2047.29,0.00024657,2]
[375739782,1753726270548,-3008.21,0.00024657,2]
[375739783,1753726270558,-747.06,0.00024657,2]
[375739784,1753726270568,-617.68,0.00024657,2]
[375739785,1753726270577,-3254.09,0.00024657,2]
[375739786,1753726270587,-971.02,0.00024657,2]
[375739787,1753726270597,-1422.43,0.00024657,2]
[375739788,1753726270609,-2471.61,0.00024657,2]
[375739789,1753726270619,-460.0,0.00024657,2]
[375739790,1753726270628,-429.60067802,0.00024657,2]
[375739791,1753726270649,-110.88932198,0.00024657,2]
[375739792,1753726270659,-463.43,0.00024657,2]
[375739793,1753726270668,-473.84,0.00024657,2]
[375739794,1753726270678,-3735.85,0.00024657,2]
[375739795,1753726270687,-2049.2,0.00024657,2]
[375739796,1753726270695,-749.47,0.00024657,2]
[375739797,1753726270704,-561.15,0.00024657,2]
[375739798,1753726270713,-469.32,0.00024657,2]
[375739799,1753726270722,-483.3,0.00024657,2]
[375739800,1753726270730,-582.39,0.00024657,2]
[375739801,1753726270738,-940.82,0.00024657,2]
[375739802,1753726270747,-481.16,0.00024657,2]
[375739803,1753726270756,-2177.28,0.00024657,2]
[375739804,1753726270765,-512.13742259,0.00024657,2]
[375739805,1753726270774,-712.61,0.00024657,2]
[375739806,1753726270784,-580.31,0.00024657,2]
[375739807,1753726270793,-1532.04,0.00024657,2]
[375739808,1753726270802,-497.89,0.00024657,2]
[375739809,1753726270812,-476.16,0.00024657,2]
[375739810,1753726270821,-460.0,0.00024657,2]
[375739811,1753726270830,-902.89,0.00024657,2]
[375739812,1753726270840,-2112.95,0.00024657,2]
[375739813,1753726270849,-23.29608343,0.00024657,2]
[375739814,1753726270866,-2133.38391657,0.00024657,2]
[375739815,1753726270875,-3066.0,0.00024658,30]
[375739816,1753726270885,-380.0,0.00024658,2]
[375739817,1753726270894,-360.83648385,0.00024658,2]
[375739818,1753726270903,-797.0,0.00024658,2]
[375739819,1753726270915,-582.0,0.00024658,2]
[375739820,1753726270924,-151.0,0.00024658,2]
[375739821,1753726270934,-977.79,0.00024692,5]
[375739822,1753726270944,-178.560559,0.000247,10]
[375739824,1753726270953,-500.0,0.00024735,2]
[375739826,1753726270962,-177.9945606,0.0002474,2]
[375739828,1753726270971,-163.2242894,0.0002474,2]
[375739830,1753726270980,-160.0754546,0.0002474,2]
[375739832,1753726270989,-600.0,0.00024779,2]
[375739834,1753726270998,-288.1,0.00024779,2]
[375739836,1753726271009,-10205.10000515,0.00024788,2]
[375739846,1753726271096,-460.0,0.00019178,2]
[375739848,1753726271108,-460.0,0.00019178,2]
[375739850,1753726271120,-5.0,0.00019178,2]
[375739852,1753726271132,-455.0,0.00019178,2]
[375739854,1753726271141,-168.35748362,0.00019452,2]
[375739857,1753726271153,-291.64251638,0.00019452,2]
[375739859,1753726271162,-460.0,0.00019726,2]
[375739861,1753726271172,-460.0,0.0002,2]
[375739863,1753726271181,-160.0,0.00024,7]
[375739865,1753726271191,-2054.48961303,0.00024788,2]
[375739896,1753726271495,-460.0,0.00019178,2]
[375739898,1753726271506,-460.0,0.00019178,2]
[375739900,1753726271516,-460.0,0.00019452,2]
[375739903,1753726271526,-275.01680734,0.00019726,2]
[375739911,1753726271593,-184.98319266,0.00019726,2]
[375739913,1753726271603,-160.0754546,0.0002474,2]
[375739915,1753726271615,-4357.80695584,0.00024788,2]
[375739917,1753726271626,-977.79,0.00024792,7]
[375739919,1753726271636,-500.0,0.00024798,2]
[375739921,1753726271645,-2000.0,0.000248,2]
[375739922,1753726271655,-19490.99339857,0.000248,2]
[375739923,1753726271664,-2000.0,0.000248,2]
[375739924,1753726271674,-43151.39942637,0.000248,14]
[375739925,1753726271747,-392.94246465,0.000248,14]
[375739927,1753726271768,-4402.35344985,0.000248,14]
[375739929,1753726271783,-11390.87823835,0.000248,14]
[375739931,1753726271793,-2000.0,0.000248,2]
[375739933,1753726271802,-159.967418,0.000248,7]
[375739935,1753726271812,-159.967418,0.000248,7]
[375739937,1753726271822,-287.226127,0.000248,7]
[375739940,1753726271831,-287.226127,0.000248,7]
[375739942,1753726271841,-151.0,0.000248,7]
[375739944,1753726271850,-151.0,0.000248,7]
[375739946,1753726271862,-168.264253,0.000248,7]
[375739948,1753726271872,-168.264253,0.000248,7]
[375739950,1753726271881,-175.209476,0.000248,7]
[375739952,1753726271890,-175.209476,0.000248,7]
[375739954,1753726271900,-2000.0,0.000248,2]
[375739956,1753726271909,-151.0,0.000248,7]
[375739958,1753726271919,-151.0,0.000248,7]
[375739960,1753726271929,-151.0,0.000248,7]
[375739962,1753726271938,-151.0,0.000248,7]
[375739964,1753726271948,-151.0,0.000248,7]
[375739966,1753726271958,-205.16957,0.000248,7]
[375739968,1753726271968,-205.16957,0.000248,7]
[375739970,1753726271977,-427.146295,0.000248,7]
[375739972,1753726271986,-427.146295,0.000248,7]
[375739974,1753726271996,-632.15641,0.000248,7]
[375739976,1753726272006,-632.15641,0.000248,7]
[375739978,1753726272015,-151.0,0.000248,7]
[375739980,1753726272026,-380.79538,0.000248,7]
[375739982,1753726272035,-380.79538,0.000248,7]
[375739983,1753726272045,-151.0,0.000248,7]
[375739984,1753726272054,-151.0,0.000248,7]
[375739985,1753726272064,-30950.8053368,0.000248,2]
[375739986,1753726272077,-256.70157,0.000248,7]
[375739987,1753726272087,-256.70157,0.000248,7]
[375739988,1753726272097,-643.566671,0.000248,7]
[375739989,1753726272109,-643.566671,0.000248,7]
[375739990,1753726272119,-625.761225,0.000248,7]
[375739991,1753726272128,-625.761225,0.000248,7]
[375739992,1753726272138,-151.0,0.000248,7]
[375739994,1753726272148,-151.0,0.000248,7]
[375739996,1753726272158,-151.0,0.000248,7]
[375739998,1753726272168,-250.0,0.00024816,2]
[375740000,1753726272178,-960.0,0.00024817,2]
[375740002,1753726272188,-969.0,0.00024836,2]
[375740004,1753726272197,-500.0,0.00024842,2]
[375740006,1753726272207,-6140.17621226,0.0002485,2]
[375740009,1753726272217,-150.0,0.0002486,2]
[375740010,1753726272226,-500.0,0.00024871,2]
[375740012,1753726272236,-178.560559,0.00024876,2]
[375740014,1753726272245,-156.143482,0.00024876,2]
[375740017,1753726272255,-2719.26098149,0.0002488,2]